fUST/lending_fUST_20250607
["ID","MTS","AMOUNT","RATE_DAILY","PERIOD"]
[364860950,1749280240239,-440.0,0.00021368,2]
[364860951,1749280240248,-440.0,0.00021368,2]
[364860952,1749280240258,-711.78,0.00021368,2]
[364860953,1749280240268,-440.0,0.00021368,2]
[364860954,1749280240283,-440.0,0.00021369,2]
[364860955,1749280240297,-153.0,0.0002137,2]
[364860956,1749280240310,-153.0,0.0002137,2]
[364860957,1749280240324,-153.0,0.0002137,2]
[364860958,1749280240337,-153.0,0.0002137,2]
[364860959,1749280240350,-153.0,0.0002137,2]
[364860960,1749280240361,-420.0,0.00021431,2]
[364860961,1749280240371,-227.0,0.00021432,2]
[364860962,1749280240382,-526.03908747,0.00021452,5]
[364860963,1749280240395,-440.0,0.00021593,2]
[364860964,1749280240407,-440.0,0.00021593,2]
[364860965,1749280240419,-440.0,0.00021593,2]
[364860966,1749280240431,-151.0,0.00021598,2]
[364860967,1749280240442,-526.03908747,0.00021624,5]
[364860968,1749280240455,-160.19,0.0002163,10]
[364860969,1749280240467,-192.23,0.00021631,10]
[364860970,1749280240480,-230.68,0.00021632,10]
[364860971,1749280240492,-440.0,0.0002164,2]
[364860972,1749280240504,-440.0,0.0002164,2]
[364860973,1749280240515,-500.0,0.0002164,2]
[364860974,1749280240528,-440.0,0.00021641,2]
[364860975,1749280240541,-440.0,0.00021641,2]
[364860976,1749280240555,-440.0,0.00021641,2]
[364860977,1749280240568,-348.33514439,0.00021641,2]
[364860978,1749280240580,-440.0,0.00021641,2]
[364860979,1749280240592,-440.0,0.00021641,2]
[364860980,1749280240605,-634.37,0.00021641,2]
[364860981,1749280240617,-440.0,0.00021641,2]
[364860982,1749280240628,-440.0,0.00021641,2]
[364860983,1749280240640,-560.73,0.00021641,2]
[364860984,1749280240651,-440.0,0.00021642,2]
[364860985,1749280240663,-440.0,0.00021642,2]
[364860986,1749280240676,-440.0,0.00021642,2]
[364860987,1749280240689,-440.0,0.00021642,2]
[364860988,1749280240700,-711.78,0.00021642,2]
[364860989,1749280240712,-440.0,0.00021642,2]
[364860990,1749280240726,-440.0,0.00021643,2]
[364860991,1749280240737,-526.03908747,0.00021797,6]
[364860992,1749280240747,-957.77136121,0.00021859,2]
[364860993,1749280240758,-600.0,0.00021861,2]
[364860994,1749280240770,-440.0,0.00021867,2]
[364860995,1749280240782,-440.0,0.00021867,2]
[364860996,1749280240793,-440.0,0.00021867,2]
[364860997,1749280240804,-215.0738,0.00021877,2]
[364860998,1749280240817,-3000.0,0.000219,2]
[364860999,1749280240832,-500.0,0.00021909,2]
[364861000,1749280240849,-3000.0,0.0002191,2]
[364861001,1749280240862,-440.0,0.00021914,2]
[364861002,1749280240875,-180.95,0.00021914,2]
[364861003,1749280240887,-440.0,0.00021915,2]
[364861004,1749280240899,-440.0,0.00021915,2]
[364861005,1749280240912,-440.0,0.00021915,2]
[364861006,1749280240926,-634.37,0.00021915,2]
[364861007,1749280240938,-440.0,0.00021915,2]
[364861008,1749280240951,-560.73,0.00021915,2]
[364861009,1749280240965,-440.0,0.00021916,2]
[364861010,1749280240979,-259.3,0.00021916,2]
[364861011,1749280240990,-440.0,0.00021916,2]
[364861012,1749280241001,-440.0,0.00021916,2]
[364861013,1749280241011,-711.78,0.00021916,2]
[364861014,1749280241021,-440.0,0.00021916,2]
[364861015,1749280241032,-440.0,0.00021917,2]
[364861016,1749280241042,-3000.0,0.0002192,2]
[364861017,1749280241053,-151.0,0.0002193,7]
[364861018,1749280241066,-3000.0,0.0002193,2]
[364861019,1749280241078,-3000.0,0.0002194,2]
[364861020,1749280241092,-500.0,0.00021948,2]
[364861021,1749280241104,-200.61,0.00021949,3]
[364861022,1749280241117,-601.86,0.00021949,3]
[364861023,1749280241128,-3000.0,0.0002195,2]
[364861024,1749280241138,-401.23,0.0002195,3]
[364861025,1749280241150,-69081.40149884,0.00021957,2]
[364861026,1749280241161,-8529.78040485,0.00021958,2]
[364861027,1749280241178,-45287.36663012,0.00021958,2]
[364861028,1749280241194,-2500.0,0.00021958,2]
[364861029,1749280241209,-391.37284,0.00021958,2]
[364861030,1749280241224,-292.7075,0.00021958,2]
[364861031,1749280241242,-19380.20559659,0.00021958,2]
[364861032,1749280241283,-800.0,0.00021958,2]
[364861033,1749280241297,-1136.60257934,0.00021958,2]
[364861034,1749280241311,-1112.81194444,0.00021958,2]
[364861035,1749280241324,-376.1391984,0.00021958,2]
[364861070,1749280243200,-2194.66742473,0.00021958,2]
[364861143,1749280247581,-199.35268959,0.00021958,2]
[364861144,1749280287917,870.30526312,0.00017999,2]
[364861145,1749280287944,968.78609567,0.00017999,2]
[364861146,1749280287971,23160.90864121,0.00017999,2]
[364861151,1749280979205,161.810463,0.00013699,2]
[364861152,1749281128168,-258.83449758,0.00018,3]
[364861153,1749281131844,-259.51324761,0.00018,3]
[364861154,1749281136047,-182.57529871,0.00018,3]
[364861155,1749281140355,-292.3537662,0.00018,3]
[364861156,1749281142473,-176.22801746,0.00018,3]
[364861157,1749281144915,-163.37215916,0.00018,3]
[364861158,1749281146295,300.0,0.00017999,2]
[364861159,1749281147458,-201.85554784,0.00018,3]
[364861160,1749281150518,-153.95114488,0.00018,3]
[364861161,1749281152472,-285.19929943,0.00018,3]
[364861162,1749281156086,-157.90957491,0.00018,3]
[364861163,1749281158001,-170.91839727,0.00018,3]
[364861164,1749281160669,-363.14659446,0.00018,3]
[364861165,1749281164412,-196.68243519,0.00018,3]
[364861166,1749281167509,-255.45969918,0.00018,3]
[364861167,1749281177515,-258.55520364,0.00018,3]
[364861168,1749281180042,-305.6,0.00018,3]
[364861169,1749281183139,-162.94620531,0.00018,3]
[364861170,1749281186918,-233.52,0.00018,3]
[364861171,1749281189946,-160.51906634,0.00018,3]
[364861172,1749281192440,-443.45777451,0.00018,3]
[364861173,1749281194419,-419.91669236,0.00018,3]
[364861174,1749281197054,-184.37567543,0.00018,3]
[364861175,1749281200950,-173.0,0.00018,3]
[364861176,1749281202850,-230.91,0.00018,3]
[364861177,1749281206522,-225.07,0.00018,3]
[364861181,1749281223252,293.0,0.00017999,2]
[364861182,1749281223541,300.0,0.00017999,2]
[364861183,1749281231121,-7546.57328741,0.00018,3]
[364861184,1749281244105,-9200.88780573,0.00018,3]
[364861189,1749281319525,150.999999,0.0002,120]
[364861193,1749281342285,300.0,0.00017999,2]
[364861195,1749281347161,-22020.27684712,0.00018,3]
[364861196,1749281347186,-152.76868582,0.00018076,2]
[364861197,1749281347208,-170.2979282,0.00018176,2]
[364861206,1749281402925,356.03459148,0.00018095,2]
[364861228,1749281432447,-160.0,0.00018653,2]
[364861230,1749281432457,-300.0,0.00018653,2]
[364861232,1749281432471,-300.0,0.00018653,2]
[364861234,1749281432481,-300.0,0.00018653,2]
[364861236,1749281432491,-226.0,0.00018653,2]
[364861237,1749281432501,-1200.0,0.00018653,2]
[364861238,1749281432511,-4569.96194088,0.00018654,2]
[364861239,1749281432522,-605.45,0.00018654,2]
[364861240,1749281432535,-2600.0,0.00018654,2]
[364861241,1749281432547,-2599.85870363,0.00018654,2]
[364861242,1749281432559,-1137.5,0.00018654,2]
[364861243,1749281432571,-4869.19082922,0.00018654,2]
[364861244,1749281432584,-481.84569023,0.00018654,2]
[364861248,1749281438356,-388.13637237,0.00018654,2]
[364861249,1749281438535,-7648.05646367,0.00018654,2]
[364861250,1749281438546,-2193.39,0.00018838,2]
[364861251,1749281438558,-187.34424927,0.000189,2]
[364861253,1749281438568,-194.48336415,0.00019086,2]
[364861254,1749281438578,-7396.66250253,0.00019148,2]
[364861255,1749281438587,-152.76868581,0.00019148,2]
[364861256,1749281438597,-440.0,0.00019178,2]
[364861257,1749281438607,-440.0,0.00019178,2]
[364861258,1749281438616,-440.0,0.00019178,2]
[364861259,1749281438625,-440.0,0.00019178,2]
[364861260,1749281438635,-559.95,0.00019178,2]
[364861261,1749281438645,-689.88,0.00019178,2]
[364861262,1749281438654,-440.0,0.00019178,2]
[364861263,1749281438664,-440.0,0.00019178,2]
[364861264,1749281438673,-440.0,0.00019178,2]
[364861265,1749281438683,-440.0,0.00019178,2]
[364861266,1749281438694,-430.0,0.00019178,2]
[364861267,1749281438704,-430.0,0.00019178,2]
[364861268,1749281438714,-440.0,0.00019178,2]
[364861269,1749281438724,-440.0,0.00019178,2]
[364861270,1749281438733,-430.0,0.00019178,2]
[364861271,1749281438744,-454.51971857,0.00019178,2]
[364861272,1749281438754,-440.0,0.00019178,2]
[364861273,1749281438766,-453.12294541,0.00019178,2]
[364861274,1749281438776,-440.0,0.00019178,2]
[364861275,1749281438786,-440.0,0.00019178,2]
[364861276,1749281438795,-440.0,0.00019178,2]
[364861277,1749281438805,-20482.42,0.00019178,2]
[364861278,1749281438815,-430.0,0.00019178,2]
[364861279,1749281438826,-440.0,0.00019178,2]
[364861280,1749281438836,-385.74013933,0.00019178,2]
[364861281,1749281438846,-440.0,0.00019178,2]
[364861282,1749281438855,-430.0,0.00019178,2]
[364861283,1749281438865,-504.96733075,0.00019178,2]
[364861284,1749281438875,-433.93580088,0.00019178,2]
[364861285,1749281438885,-440.0,0.00019178,2]
[364861286,1749281438895,-440.0,0.00019178,2]
[364861287,1749281438905,-430.0,0.00019178,2]
[364861288,1749281438916,-440.0,0.00019178,2]
[364861289,1749281438925,-430.0,0.00019178,2]
[364861290,1749281438935,-434.46530921,0.00019178,2]
[364861291,1749281438945,-440.0,0.00019178,2]
[364861292,1749281438956,-430.0,0.00019178,2]
[364861293,1749281438966,-440.0,0.00019178,2]
[364861294,1749281438976,-440.0,0.00019178,2]
[364861295,1749281438986,-430.0,0.00019178,2]
[364861296,1749281438996,-430.0,0.00019178,2]
[364861297,1749281439006,-430.0,0.00019178,2]
[364861298,1749281439015,-440.0,0.00019178,2]
[364861299,1749281439025,-430.0,0.00019178,2]
[364861300,1749281439035,-522.25550712,0.00019178,2]
[364861301,1749281439046,-430.0,0.00019178,2]
[364861302,1749281439057,-430.0,0.00019178,2]
[364861303,1749281439067,-440.0,0.00019178,2]
[364861304,1749281439078,-430.0,0.00019178,2]
[364861305,1749281439088,-440.0,0.00019178,2]
[364861306,1749281439097,-440.0,0.00019178,2]
[364861307,1749281439107,-440.0,0.00019178,2]
[364861308,1749281439117,-440.0,0.00019178,2]
[364861309,1749281439126,-430.0,0.00019178,2]
[364861310,1749281439136,-440.0,0.00019178,2]
[364861311,1749281439147,-518.12,0.00019178,2]
[364861312,1749281439156,-440.0,0.00019178,2]
[364861313,1749281439167,-430.0,0.00019178,2]
[364861314,1749281439177,-388.13637237,0.00019178,2]
[364861315,1749281439187,-430.0,0.00019178,2]
[364861316,1749281439197,-430.0,0.00019178,2]
[364861317,1749281439206,-177.517354,0.00019178,2]
[364861318,1749281439216,-177.79823368,0.00019178,2]
[364861319,1749281439226,-431.74485722,0.00019452,2]
[364861320,1749281439236,-440.0,0.00019452,2]
[364861321,1749281439247,-440.0,0.00019452,2]
[364861322,1749281439257,-440.0,0.00019452,2]
[364861323,1749281439267,-559.95,0.00019452,2]
[364861324,1749281439277,-689.88,0.00019452,2]
[364861325,1749281439288,-440.0,0.00019452,2]
[364861326,1749281439297,-233.95102304,0.00019452,2]
[364861327,1749281439307,-440.0,0.00019452,2]
[364861328,1749281439317,-440.0,0.00019452,2]
[364861329,1749281439327,-440.0,0.00019452,2]
[364861330,1749281439337,-440.0,0.00019452,2]
[364861331,1749281439346,-440.0,0.00019452,2]
[364861332,1749281439356,-440.0,0.00019452,2]
[364861333,1749281439366,-440.0,0.00019452,2]
[364861334,1749281439375,-440.0,0.00019452,2]
[364861335,1749281439385,-20482.42,0.00019452,2]
[364861336,1749281439397,-440.0,0.00019452,2]
[364861337,1749281439407,-440.0,0.00019452,2]
[364861338,1749281439417,-440.0,0.00019452,2]
[364861339,1749281439427,-440.0,0.00019452,2]
[364861340,1749281439438,-440.0,0.00019452,2]
[364861341,1749281439447,-440.0,0.00019452,2]
[364861342,1749281439457,-440.0,0.00019452,2]
[364861343,1749281439469,-440.0,0.00019452,2]
[364861344,1749281439478,-440.0,0.00019452,2]
[364861345,1749281439488,-420.0,0.00019452,2]
[364861346,1749281439498,-440.0,0.00019452,2]
[364861347,1749281439508,-440.0,0.00019452,2]
[364861348,1749281439518,-440.0,0.00019452,2]
[364861349,1749281439528,-440.0,0.00019452,2]
[364861350,1749281439537,-440.0,0.00019452,2]
[364861351,1749281439548,-440.0,0.00019452,2]
[364861352,1749281439559,-1275.8632218,0.00019575,2]
[364861353,1749281439571,-420.0,0.00019639,2]
[364861354,1749281439581,-518.12,0.00019673,2]
[364861355,1749281439590,-430.0,0.00019674,2]
[364861356,1749281439599,-440.0,0.00019674,2]
[364861357,1749281439609,-440.0,0.00019674,2]
[364861358,1749281439620,-500.0,0.00019674,2]
[364861359,1749281439630,-440.0,0.00019674,2]
[364861361,1749281439640,-520.78,0.00019674,2]
[364861362,1749281439651,-420.0,0.00019674,2]
[364861363,1749281439661,-500.0,0.00019674,2]
[364861364,1749281439671,-440.0,0.00019674,2]
[364861365,1749281439681,-440.0,0.00019674,2]
[364861366,1749281439691,-440.0,0.00019674,2]
[364861367,1749281439701,-420.0,0.00019674,2]
[364861368,1749281439836,-440.0,0.00019674,2]
[364861369,1749281439848,-440.0,0.00019674,2]
[364861371,1749281439859,-440.0,0.00019674,2]
[364861372,1749281439869,-430.0,0.00019674,2]
[364861373,1749281439879,-440.0,0.00019674,2]
[364861374,1749281439890,-430.0,0.00019674,2]
[364861375,1749281439901,-440.0,0.00019674,2]
[364861376,1749281439912,-440.0,0.00019674,2]
[364861377,1749281439922,-420.0,0.00019674,2]
[364861378,1749281439931,-440.0,0.00019674,2]
[364861379,1749281439942,-255.40745137,0.00019674,2]
[364861380,1749281439951,-440.0,0.00019674,2]
[364861381,1749281439961,-420.0,0.00019674,2]
[364861382,1749281439971,-440.0,0.00019674,2]
[364861383,1749281439981,-440.0,0.00019674,2]
[364861384,1749281439991,-440.0,0.00019674,2]
[364861385,1749281440001,-430.0,0.00019674,2]
[364861386,1749281440011,-440.0,0.00019674,2]
[364861387,1749281440021,-440.0,0.00019674,2]
[364861388,1749281440032,-440.0,0.00019674,2]
[364861389,1749281440042,-420.0,0.00019674,2]
[364861390,1749281440052,-440.0,0.00019674,2]
[364861391,1749281440062,-458.22747589,0.00019674,2]
[364861392,1749281440072,-440.0,0.00019674,2]
[364861393,1749281440082,-440.0,0.00019674,2]
[364861395,1749281440091,-430.0,0.00019674,2]
[364861396,1749281440101,-420.0,0.00019674,2]
[364861397,1749281440110,-480.85504194,0.00019674,2]
[364861398,1749281440120,-430.0,0.00019674,2]
[364861399,1749281440130,-440.0,0.00019674,2]
[364861400,1749281440140,-440.0,0.00019674,2]
[364861401,1749281440150,-436.48462691,0.00019674,2]
[364861402,1749281440159,-440.0,0.00019674,2]
[364861403,1749281440169,-420.0,0.00019674,2]
[364861404,1749281440179,-440.0,0.00019674,2]
[364861405,1749281440189,-440.0,0.00019674,2]
[364861406,1749281440199,-440.0,0.00019674,2]
[364861407,1749281440210,-483.11435397,0.00019674,2]
[364861408,1749281440220,-430.0,0.00019674,2]
[364861409,1749281440230,-440.0,0.00019674,2]
[364861410,1749281440240,-440.0,0.00019674,2]
[364861411,1749281440249,-440.0,0.00019674,2]
[364861413,1749281440259,-440.0,0.00019674,2]
[364861414,1749281440269,-384.27329561,0.00019674,2]
[364861415,1749281440279,-537.2966483,0.00019674,2]
[364861416,1749281440288,-440.0,0.00019674,2]
[364861417,1749281440298,-440.0,0.00019674,2]
[364861418,1749281440308,-440.0,0.00019674,2]
[364861419,1749281440319,-430.0,0.00019674,2]
[364861420,1749281440328,-440.0,0.00019674,2]
[364861421,1749281440338,-433.59214619,0.00019674,2]
[364861422,1749281440348,-440.0,0.00019674,2]
[364861423,1749281440357,-440.0,0.00019674,2]
[364861424,1749281440367,-430.0,0.00019674,2]
[364861425,1749281440377,-440.0,0.00019674,2]
[364861426,1749281440387,-440.0,0.00019674,2]
[364861427,1749281440401,-617.48,0.00019674,2]
[364861428,1749281440410,-431.45925322,0.00019674,2]
[364861429,1749281440420,-440.0,0.00019674,2]
[364861430,1749281440430,-440.0,0.00019674,2]
[364861431,1749281440440,-430.0,0.00019674,2]
[364861432,1749281440450,-440.0,0.00019674,2]
[364861433,1749281440460,-431.50682603,0.00019674,2]
[364861434,1749281440472,-485.9,0.00019674,2]
[364861435,1749281440482,-518.12,0.00019674,2]
[364861436,1749281440491,-369.8527878,0.00019674,2]
[364861437,1749281440501,-424.44304291,0.00019674,2]
[364861439,1749281440511,-430.0,0.00019675,2]
[364861441,1749281440520,-440.0,0.00019675,2]
[364861442,1749281440531,-430.0,0.00019675,2]
[364861444,1749281440541,-440.0,0.00019675,2]
[364861445,1749281440550,-430.0,0.00019675,2]
[364861446,1749281440560,-440.0,0.00019675,2]
[364861447,1749281440569,-430.0,0.00019675,2]
[364861448,1749281440579,-367.69743656,0.00019675,2]
[364861449,1749281440589,-430.0,0.00019675,2]
[364861450,1749281440599,-453.80888928,0.00019675,2]
[364861451,1749281440609,-440.0,0.00019675,2]
[364861452,1749281440619,-430.0,0.00019675,2]
[364861453,1749281440628,-440.0,0.00019675,2]
[364861454,1749281440638,-264.17758372,0.00019675,2]
[364861455,1749281440648,-440.0,0.00019675,2]
[364861456,1749281440658,-176.98459333,0.00019675,2]
[364861457,1749281440668,-440.0,0.00019675,2]
[364861458,1749281440678,-490.75609032,0.00019675,2]
[364861459,1749281440688,-430.0,0.00019675,2]
[364861460,1749281440698,-440.0,0.00019675,2]
[364861461,1749281440708,-440.0,0.00019675,2]
[364861462,1749281440717,-360.0,0.00019675,2]
[364861463,1749281440727,-440.0,0.00019675,2]
[364861464,1749281440737,-430.0,0.00019675,2]
[364861465,1749281440747,-430.0,0.00019675,2]
[364861466,1749281440757,-430.0,0.00019675,2]
[364861467,1749281440767,-405.76938968,0.00019675,2]
[364861468,1749281440777,-500.0,0.00019675,2]
[364861469,1749281440787,-396.61818689,0.00019675,2]
[364861470,1749281440796,-211.17063852,0.00019675,2]
[364861471,1749281440806,-430.0,0.00019675,2]
[364861472,1749281440816,-440.0,0.00019675,2]
[364861473,1749281440826,-430.0,0.00019675,2]
[364861474,1749281440836,-445.798385,0.00019675,2]
[364861475,1749281440846,-359.20152338,0.00019675,2]
[364861476,1749281440855,-500.0,0.00019675,2]
[364861477,1749281440865,-480.0,0.00019675,2]
[364861478,1749281440874,-433.49669155,0.00019675,2]
[364861479,1749281440885,-324.63575684,0.00019675,2]
[364861480,1749281440895,-440.0,0.00019675,2]
[364861481,1749281440904,-440.0,0.00019675,2]
[364861482,1749281440915,-440.0,0.00019675,2]
[364861483,1749281440926,-440.0,0.00019675,2]
[364861484,1749281440936,-440.0,0.00019675,2]
[364861485,1749281440946,-560.29190621,0.00019675,2]
[364861486,1749281440956,-430.0,0.00019675,2]
[364861487,1749281440966,-430.0,0.00019675,2]
[364861488,1749281440975,-500.0,0.00019675,2]
[364861489,1749281440986,-430.0,0.00019675,2]
[364861490,1749281440996,-440.0,0.00019675,2]
[364861491,1749281441006,-440.0,0.00019675,2]
[364861492,1749281441016,-573.70470509,0.00019675,2]
[364861493,1749281441026,-440.0,0.00019675,2]
[364861494,1749281441036,-440.0,0.00019675,2]
[364861495,1749281441046,-206.78080013,0.00019675,2]
[364861496,1749281441055,-440.0,0.00019675,2]
[364861497,1749281441066,-420.0,0.00019675,2]
[364861498,1749281441077,-430.0,0.00019675,2]
[364861499,1749281441086,-446.07446011,0.00019675,2]
[364861500,1749281441096,-440.0,0.00019675,2]
[364861501,1749281441106,-440.0,0.00019675,2]
[364861502,1749281441116,-440.0,0.00019675,2]
[364861503,1749281441126,-430.95458893,0.00019675,2]
[364861504,1749281441136,-440.0,0.00019675,2]
[364861505,1749281441146,-440.0,0.00019675,2]
[364861506,1749281441156,-456.80150904,0.00019675,2]
[364861507,1749281441165,-431.72086814,0.00019675,2]
[364861508,1749281441175,-440.0,0.00019675,2]
[364861509,1749281441185,-440.0,0.00019675,2]
[364861510,1749281441194,-430.0,0.00019675,2]
[364861511,1749281441204,-430.0,0.00019675,2]
[364861512,1749281441213,-430.0,0.00019675,2]
[364861513,1749281441222,-440.0,0.00019675,2]
[364861514,1749281441232,-430.0,0.00019675,2]
[364861515,1749281441243,-430.0,0.00019675,2]
[364861516,1749281441253,-440.0,0.00019675,2]
[364861517,1749281441262,-430.0,0.00019675,2]
[364861518,1749281441272,-440.0,0.00019675,2]
[364861519,1749281441281,-430.0,0.00019675,2]
[364861520,1749281441291,-440.0,0.00019675,2]
[364861521,1749281441300,-440.0,0.00019675,2]
[364861522,1749281441310,-440.0,0.00019675,2]
[364861523,1749281441320,-430.0,0.00019675,2]
[364861524,1749281441329,-494.70773844,0.00019675,2]
[364861525,1749281441339,-490.0,0.00019675,2]
[364861526,1749281441348,-430.47774388,0.00019675,2]
[364861527,1749281441357,-440.0,0.00019675,2]
[364861528,1749281441367,-430.0,0.00019675,2]
[364861529,1749281441378,-432.17771895,0.00019675,2]
[364861530,1749281441391,-514.57626875,0.00019675,2]
[364861531,1749281441411,-440.0,0.00019675,2]
[364861532,1749281441432,-454.161267,0.00019675,2]
[364861533,1749281441443,-440.0,0.00019675,2]
[364861534,1749281441453,-430.0,0.00019675,2]
[364861535,1749281441463,-440.0,0.00019675,2]
[364861536,1749281441473,-440.0,0.00019675,2]
[364861537,1749281441482,-430.0,0.00019675,2]
[364861538,1749281441492,-430.0,0.00019675,2]
[364861539,1749281441503,-783.24,0.00019675,2]
[364861540,1749281441513,-440.0,0.00019675,2]
[364861541,1749281441522,-440.0,0.00019675,2]
[364861542,1749281441532,-453.43065481,0.00019675,2]
[364861543,1749281441542,-440.0,0.00019675,2]
[364861544,1749281441551,-431.14723242,0.00019675,2]
[364861545,1749281441561,-430.0,0.00019675,2]
[364861546,1749281441573,-518.12,0.00019675,2]
[364861547,1749281441583,-440.0,0.00019675,2]
[364861548,1749281441592,-430.0,0.00019675,2]
[364861549,1749281441602,-430.0,0.00019675,2]
[364861550,1749281441612,-440.0,0.00019675,2]
[364861551,1749281441621,-440.0,0.00019726,2]
[364861552,1749281441632,-559.95,0.00019726,2]
[364861553,1749281441642,-689.88,0.00019726,2]
[364861554,1749281441655,-440.0,0.00019726,2]
[364861555,1749281441664,-158.9478231,0.00019726,2]
[364861556,1749281441674,-440.0,0.00019726,2]
[364861557,1749281441684,-20482.42,0.00019726,2]
[364861558,1749281441694,-440.0,0.00019726,2]
[364861559,1749281441704,-440.0,0.00019726,2]
[364861560,1749281441715,-440.0,0.00019726,2]
[364861561,1749281441725,-440.0,0.00019726,2]
[364861562,1749281441734,-409.93043748,0.000199,2]
[364861563,1749281441744,-440.0,0.00019948,2]
[364861564,1749281441754,-430.0,0.00019948,2]
[364861565,1749281441763,-440.0,0.00019948,2]
[364861566,1749281441775,-440.0,0.00019948,2]
[364861567,1749281441784,-440.0,0.00019948,2]
[364861568,1749281441795,-440.0,0.00019948,2]
[364861569,1749281441805,-426.67607642,0.00019948,2]
[364861570,1749281441815,-440.0,0.00019948,2]
[364861571,1749281441824,-495.72,0.00019948,2]
[364861572,1749281441834,-440.0,0.00019948,2]
[364861573,1749281441844,-440.0,0.00019948,2]
[364861574,1749281441854,-410.0,0.00019948,2]
[364861575,1749281441864,-440.0,0.00019948,2]
[364861576,1749281441874,-440.0,0.00019948,2]
[364861577,1749281441883,-440.0,0.00019948,2]
[364861578,1749281441893,-440.0,0.00019948,2]
[364861579,1749281441903,-440.0,0.00019948,2]
[364861580,1749281441913,-440.0,0.00019948,2]
[364861581,1749281441922,-327.12464886,0.00019948,2]
[364861582,1749281441932,-440.0,0.00019948,2]
[364861583,1749281441941,-425.57863015,0.00019948,2]
[364861584,1749281441951,-440.0,0.00019948,2]
[364861585,1749281441961,-440.0,0.00019948,2]
[364861586,1749281441970,-440.0,0.00019948,2]
[364861587,1749281441980,-440.0,0.00019948,2]
[364861588,1749281441990,-440.0,0.00019948,2]
[364861589,1749281442000,-440.0,0.00019948,2]
[364861590,1749281442010,-440.0,0.00019948,2]
[364861591,1749281442019,-440.0,0.00019948,2]
[364861592,1749281442031,-440.0,0.00019948,2]
[364861593,1749281442042,-420.0,0.00019948,2]
[364861594,1749281442052,-380.31991101,0.00019948,2]
[364861595,1749281442062,-440.0,0.00019948,2]
[364861596,1749281442072,-440.0,0.00019948,2]
[364861597,1749281442083,-440.0,0.00019948,2]
[364861598,1749281442093,-440.0,0.00019948,2]
[364861599,1749281442103,-440.0,0.00019948,2]
[364861600,1749281442112,-489.58,0.00019948,2]
[364861601,1749281442123,-440.0,0.00019948,2]
[364861602,1749281442134,-440.0,0.00019948,2]
[364861603,1749281442144,-617.48,0.00019948,2]
[364861604,1749281442156,-440.0,0.00019948,2]
[364861605,1749281442167,-440.0,0.00019948,2]
[364861606,1749281442176,-440.0,0.00019948,2]
[364861607,1749281442186,-518.12,0.00019948,2]
[364861608,1749281442195,-440.0,0.00019949,2]
[364861609,1749281442205,-440.0,0.00019949,2]
[364861610,1749281442216,-440.0,0.00019949,2]
[364861611,1749281442227,-420.0,0.00019949,2]
[364861612,1749281442237,-420.0,0.00019949,2]
[364861613,1749281442247,-473.43736884,0.00019949,2]
[364861614,1749281442256,-430.0,0.00019949,2]